[Event "*** SCC Grand Prix: Titled Tuesday Blitz"]
[Site "Chess.com"]
[Date "2020.09.29"]
[Round "5"]
[White "BanjoKazooieN64"]
[Black "KingHarii"]
[Result "0-1"]
[WhiteElo "2490"]
[BlackElo "2703"]
[TimeControl "180+1"]
[EndTime "10:55:34 PDT"]
[Termination "KingHarii won by resignation"]

1. e4 {[%clk 0:03:00.9]} 1... d5 {[%clk 0:02:58.2]} 2. exd5 {[%clk 0:03:00]}
2... Qxd5 {[%clk 0:02:59.1]} 3. Nc3 {[%clk 0:03:00.3]} 3... Qd8 {[%clk
0:02:59.4]} 4. d4 {[%clk 0:03:00.5]} 4... Nf6 {[%clk 0:02:59.9]} 5. Nf3 {[%clk
0:03:00.7]} 5... g6 {[%clk 0:03:00.4]} 6. Bc4 {[%clk 0:03:00.9]} 6... Bg7 {[%clk
0:03:00.9]} 7. Ne5 {[%clk 0:03:00.9]} 7... O-O {[%clk 0:02:58.8]} 8. O-O {[%clk
0:03:01.1]} 8... c6 {[%clk 0:02:58]} 9. Bg5 {[%clk 0:03:00.8]} 9... Nd5 {[%clk
0:02:56.9]} 10. Bh4 {[%clk 0:02:49.2]} 10... Be6 {[%clk 0:02:41]} 11. Bb3 {[%clk
0:02:39.7]} 11... Nxc3 {[%clk 0:02:37.1]} 12. bxc3 {[%clk 0:02:39.9]} 12... Bxb3
{[%clk 0:02:24.1]} 13. axb3 {[%clk 0:02:40.8]} 13... Nd7 {[%clk 0:02:19.6]} 14.
Nxd7 {[%clk 0:02:37.9]} 14... Qxd7 {[%clk 0:02:20.5]} 15. Re1 {[%clk 0:02:38.1]}
15... e6 {[%clk 0:02:21]} 16. b4 {[%clk 0:02:33.9]} 16... a6 {[%clk 0:02:20.5]}
17. Qf3 {[%clk 0:02:27.5]} 17... Rae8 {[%clk 0:02:18.4]} 18. Bf6 {[%clk
0:02:25.5]} 18... Qd5 {[%clk 0:02:13.1]} 19. Qxd5 {[%clk 0:02:21.2]} 19... cxd5
{[%clk 0:02:14]} 20. Bxg7 {[%clk 0:02:21.5]} 20... Kxg7 {[%clk 0:02:14.9]} 21.
Ra5 {[%clk 0:02:19.6]} 21... Rc8 {[%clk 0:02:13.7]} 22. Rc5 {[%clk 0:02:19.5]}
22... b6 {[%clk 0:02:14.1]} 23. Rxc8 {[%clk 0:02:19.4]} 23... Rxc8 {[%clk
0:02:15]} 24. Re3 {[%clk 0:02:19.6]} 24... a5 {[%clk 0:02:15]} 25. bxa5 {[%clk
0:02:09.3]} 25... bxa5 {[%clk 0:02:15.9]} 26. Kf1 {[%clk 0:02:09.9]} 26... a4
{[%clk 0:02:16.2]} 27. Ke2 {[%clk 0:02:07.7]} 27... Rb8 {[%clk 0:02:06.5]} 28.
Kd2 {[%clk 0:02:05.4]} 28... Rb1 {[%clk 0:02:02]} 29. c4 {[%clk 0:02:03.6]}
29... dxc4 {[%clk 0:01:59.5]} 30. Ra3 {[%clk 0:02:03.4]} 30... Rg1 {[%clk
0:01:49.2]} 31. g3 {[%clk 0:02:02.6]} 31... c3+ {[%clk 0:01:27]} 32. Kxc3 {[%clk
0:01:32.6]} 32... Rg2 {[%clk 0:01:23.1]} 33. f4 {[%clk 0:01:32.1]} 33... Rxh2
{[%clk 0:01:22]} 34. Rxa4 {[%clk 0:01:31]} 34... Rh3 {[%clk 0:01:21.1]} 35. Kb4
{[%clk 0:01:28.9]} 35... Rxg3 {[%clk 0:01:21.3]} 36. c4 {[%clk 0:01:29.2]} 36...
Rf3 {[%clk 0:01:12.4]} 37. c5 {[%clk 0:01:27.9]} 37... Rxf4 {[%clk 0:01:11.6]}
38. Kb5 {[%clk 0:01:20.4]} 38... Rf1 {[%clk 0:01:09.3]} 39. c6 {[%clk
0:01:19.8]} 39... Rc1 {[%clk 0:01:02.7]} 40. Rc4 {[%clk 0:01:17.6]} 40... Rb1+
{[%clk 0:01:03.3]} 41. Kc5 {[%clk 0:01:14]} 41... Rb8 {[%clk 0:00:58.2]} 42. c7
{[%clk 0:01:14.2]} 42... Rc8 {[%clk 0:00:56.8]} 43. Kd6 {[%clk 0:01:14]} 43...
g5 {[%clk 0:00:50.1]} 44. Kd7 {[%clk 0:01:13]} 44... Ra8 {[%clk 0:00:35.4]} 45.
Rb4 {[%clk 0:01:04.1]} 45... h5 {[%clk 0:00:30.9]} 46. c8=Q {[%clk 0:00:58.1]}
46... Rxc8 {[%clk 0:00:30.7]} 47. Kxc8 {[%clk 0:00:59]} 47... g4 {[%clk
0:00:28.9]} 48. Kd7 {[%clk 0:00:54.9]} 48... Kf6 {[%clk 0:00:27.2]} 49. Kd6
{[%clk 0:00:44]} 49... g3 {[%clk 0:00:26.4]} 50. d5 {[%clk 0:00:35.8]} 50... g2
{[%clk 0:00:23]} 51. Rb1 {[%clk 0:00:31.7]} 51... h4 {[%clk 0:00:23.3]} 52. Kc5
{[%clk 0:00:20.7]} 52... exd5 {[%clk 0:00:22.8]} 53. Kd4 {[%clk 0:00:19.5]}
53... h3 {[%clk 0:00:22.6]} 54. Ke3 {[%clk 0:00:19]} 54... h2 {[%clk 0:00:23.1]}
55. Kf2 {[%clk 0:00:19.5]} 0-1

[Event "*** SCC Grand Prix: Titled Tuesday Blitz"]
[Site "Chess.com"]
[Date "2020.09.29"]
[Round "5"]
[White "GM_Levan_Pantsulaia"]
[Black "lachesisQ"]
[Result "0-1"]
[WhiteElo "2841"]
[BlackElo "3113"]
[TimeControl "180+1"]
[EndTime "10:55:36 PDT"]
[Termination "lachesisQ won by resignation"]

1. Nf3 {[%clk 0:03:00.9]} 1... b6 {[%clk 0:03:00.9]} 2. g3 {[%clk 0:03:00.3]}
2... Bb7 {[%clk 0:03:01.8]} 3. Bg2 {[%clk 0:03:00.7]} 3... g6 {[%clk 0:02:58.8]}
4. O-O {[%clk 0:03:00.5]} 4... Bg7 {[%clk 0:02:59.1]} 5. c4 {[%clk 0:03:00.4]}
5... c5 {[%clk 0:02:58.8]} 6. Nc3 {[%clk 0:03:00.7]} 6... Nh6 {[%clk 0:02:57.2]}
7. e3 {[%clk 0:02:37.9]} 7... O-O {[%clk 0:02:53.1]} 8. d4 {[%clk 0:02:38]} 8...
cxd4 {[%clk 0:02:46.2]} 9. exd4 {[%clk 0:02:38.9]} 9... Nf5 {[%clk 0:02:46.7]}
10. d5 {[%clk 0:02:05.6]} 10... Na6 {[%clk 0:02:44.8]} 11. Bd2 {[%clk 0:01:54]}
11... Rc8 {[%clk 0:02:29]} 12. b3 {[%clk 0:01:53.1]} 12... Nc5 {[%clk
0:02:26.2]} 13. Rb1 {[%clk 0:01:17]} 13... e6 {[%clk 0:02:23.9]} 14. g4 {[%clk
0:01:05]} 14... Nd6 {[%clk 0:02:20.2]} 15. Re1 {[%clk 0:00:56]} 15... exd5
{[%clk 0:02:15.2]} 16. Bg5 {[%clk 0:00:48]} 16... f6 {[%clk 0:01:49.2]} 17. Bf4
{[%clk 0:00:47.6]} 17... Nde4 {[%clk 0:01:38.1]} 18. Nxd5 {[%clk 0:00:48]} 18...
f5 {[%clk 0:01:37.6]} 19. g5 {[%clk 0:00:47.3]} 19... Ne6 {[%clk 0:01:35.6]} 20.
h4 {[%clk 0:00:43.6]} 20... Kh8 {[%clk 0:01:17.4]} 21. Bh2 {[%clk 0:00:43.3]}
21... b5 {[%clk 0:01:13.5]} 22. cxb5 {[%clk 0:00:38.3]} 22... Rc5 {[%clk
0:01:05.7]} 23. Ne3 {[%clk 0:00:30.9]} 23... Nc3 {[%clk 0:01:03.3]} 24. Qd2
{[%clk 0:00:25.4]} 24... Nxb1 {[%clk 0:01:02]} 25. Rxb1 {[%clk 0:00:26.3]} 25...
Rxb5 {[%clk 0:01:01.6]} 26. Nc4 {[%clk 0:00:26.5]} 26... Be4 {[%clk 0:00:59.9]}
27. Re1 {[%clk 0:00:25.4]} 27... Rd5 {[%clk 0:00:57.2]} 28. Qc1 {[%clk
0:00:25.1]} 28... Qa8 {[%clk 0:00:51.9]} 29. Ncd2 {[%clk 0:00:20]} 29... Rxd2
{[%clk 0:00:42]} 30. Qxd2 {[%clk 0:00:18.9]} 30... Bxf3 {[%clk 0:00:42.1]} 31.
Bxf3 {[%clk 0:00:17.7]} 31... Qxf3 {[%clk 0:00:41]} 32. Qxd7 {[%clk 0:00:18.6]}
32... Qg4+ {[%clk 0:00:39.1]} 33. Kh1 {[%clk 0:00:17.9]} 33... Nf4 {[%clk
0:00:34.4]} 34. Qb7 {[%clk 0:00:15.9]} 34... Nd3 {[%clk 0:00:31.9]} 35. Rf1
{[%clk 0:00:14.2]} 35... Qxh4 {[%clk 0:00:30.5]} 36. Qd5 {[%clk 0:00:13]} 36...
Nxf2+ {[%clk 0:00:28.4]} 37. Kg2 {[%clk 0:00:12.8]} 37... Ne4 {[%clk 0:00:24.9]}
38. Bf4 {[%clk 0:00:12.9]} 38... Qg4+ {[%clk 0:00:23.4]} 39. Kh2 {[%clk
0:00:13.4]} 39... Qe2+ {[%clk 0:00:22.9]} 40. Kg1 {[%clk 0:00:12.8]} 40... Qg4+
{[%clk 0:00:20.2]} 41. Kh2 {[%clk 0:00:12.2]} 41... Nxg5 {[%clk 0:00:19.8]} 42.
Bd6 {[%clk 0:00:11.2]} 42... Qh3+ {[%clk 0:00:19.2]} 43. Kg1 {[%clk 0:00:11.1]}
43... Qg4+ {[%clk 0:00:20.1]} 44. Kh2 {[%clk 0:00:10.4]} 44... Re8 {[%clk
0:00:21]} 45. Rf2 {[%clk 0:00:09.8]} 45... Qh3+ {[%clk 0:00:20.7]} 0-1

[Event "*** SCC Grand Prix: Titled Tuesday Blitz"]
[Site "Chess.com"]
[Date "2020.09.29"]
[Round "5"]
[White "Sergienko_Sergey"]
[Black "Margarita2907"]
[Result "1-0"]
[WhiteElo "2363"]
[BlackElo "2184"]
[TimeControl "180+1"]
[EndTime "10:55:38 PDT"]
[Termination "Sergienko_Sergey won by checkmate"]

1. e4 {[%clk 0:02:56.7]} 1... c5 {[%clk 0:02:59.3]} 2. Nc3 {[%clk 0:02:55.7]}
2... a6 {[%clk 0:02:56.5]} 3. g3 {[%clk 0:02:54]} 3... g6 {[%clk 0:02:51.2]} 4.
Bg2 {[%clk 0:02:53.4]} 4... Bg7 {[%clk 0:02:51]} 5. f4 {[%clk 0:02:50.6]} 5...
e6 {[%clk 0:02:49.2]} 6. Nf3 {[%clk 0:02:49.7]} 6... Ne7 {[%clk 0:02:48]} 7. O-O
{[%clk 0:02:49.3]} 7... O-O {[%clk 0:02:47]} 8. d3 {[%clk 0:02:48.7]} 8... Nbc6
{[%clk 0:02:43]} 9. Be3 {[%clk 0:02:43.9]} 9... b6 {[%clk 0:02:34.8]} 10. d4
{[%clk 0:02:20.4]} 10... cxd4 {[%clk 0:02:32.8]} 11. Nxd4 {[%clk 0:02:20.3]}
11... Bb7 {[%clk 0:02:29.9]} 12. e5 {[%clk 0:02:16.6]} 12... Qc7 {[%clk
0:01:39.7]} 13. Ne4 {[%clk 0:02:07.3]} 13... Nxd4 {[%clk 0:01:36.1]} 14. Bxd4
{[%clk 0:02:00.8]} 14... Nf5 {[%clk 0:01:33.5]} 15. Bf2 {[%clk 0:02:00.2]} 15...
Rac8 {[%clk 0:01:22.8]} 16. c3 {[%clk 0:01:59.8]} 16... Bxe4 {[%clk 0:00:48.8]}
17. Bxe4 {[%clk 0:01:58.5]} 17... d5 {[%clk 0:00:48.3]} 18. Bg2 {[%clk 0:01:47]}
18... Rfd8 {[%clk 0:00:41.6]} 19. Qb3 {[%clk 0:01:45.5]} 19... Rb8 {[%clk
0:00:38.2]} 20. Rfd1 {[%clk 0:01:43.6]} 20... b5 {[%clk 0:00:36.6]} 21. Rac1
{[%clk 0:01:32.6]} 21... Bf8 {[%clk 0:00:36.4]} 22. g4 {[%clk 0:01:27.6]} 22...
Ne7 {[%clk 0:00:32.8]} 23. Qc2 {[%clk 0:01:18.6]} 23... Nc8 {[%clk 0:00:29.6]}
24. Qe2 {[%clk 0:01:14.4]} 24... Bc5 {[%clk 0:00:28.1]} 25. Bd4 {[%clk
0:01:12.4]} 25... Nb6 {[%clk 0:00:24.4]} 26. Kh1 {[%clk 0:01:08]} 26... Bxd4
{[%clk 0:00:22.2]} 27. cxd4 {[%clk 0:01:07.3]} 27... Qd7 {[%clk 0:00:20.8]} 28.
b3 {[%clk 0:00:58.5]} 28... Rbc8 {[%clk 0:00:20.8]} 29. Qd2 {[%clk 0:00:56.1]}
29... Rc6 {[%clk 0:00:19.2]} 30. Rxc6 {[%clk 0:00:54.6]} 30... Qxc6 {[%clk
0:00:18.5]} 31. Rc1 {[%clk 0:00:54.5]} 31... Qd7 {[%clk 0:00:18.5]} 32. h3
{[%clk 0:00:50.6]} 32... Rc8 {[%clk 0:00:18.2]} 33. Kh2 {[%clk 0:00:47.8]} 33...
Rc6 {[%clk 0:00:17.5]} 34. Rxc6 {[%clk 0:00:44.4]} 34... Qxc6 {[%clk 0:00:17.8]}
35. Qa5 {[%clk 0:00:44.8]} 35... Kg7 {[%clk 0:00:14.9]} 36. Qxa6 {[%clk
0:00:43.9]} 36... b4 {[%clk 0:00:11.9]} 37. Qd3 {[%clk 0:00:41.5]} 37... Qc1
{[%clk 0:00:10.6]} 38. Qf3 {[%clk 0:00:37]} 38... Qc2 {[%clk 0:00:09.7]} 39. f5
{[%clk 0:00:33.9]} 39... exf5 {[%clk 0:00:07.4]} 40. gxf5 {[%clk 0:00:33.6]}
40... Qxa2 {[%clk 0:00:06.5]} 41. e6 {[%clk 0:00:20.8]} 41... fxe6 {[%clk
0:00:05.4]} 42. fxe6 {[%clk 0:00:20.2]} 42... Qa7 {[%clk 0:00:05.1]} 43. Qf4
{[%clk 0:00:17.2]} 43... Qe7 {[%clk 0:00:03.3]} 44. Qe5+ {[%clk 0:00:16.3]}
44... Kf8 {[%clk 0:00:03.2]} 45. Qh8# {[%clk 0:00:15.3]} 1-0

[Event "*** SCC Grand Prix: Titled Tuesday Blitz"]
[Site "Chess.com"]
[Date "2020.09.29"]
[Round "5"]
[White "Tactictic"]
[Black "ENajer77"]
[Result "0-1"]
[WhiteElo "2436"]
[BlackElo "2707"]
[TimeControl "180+1"]
[EndTime "10:55:39 PDT"]
[Termination "ENajer77 won on time"]

1. e4 {[%clk 0:02:37.6]} 1... c6 {[%clk 0:02:58.6]} 2. d4 {[%clk 0:02:37.3]}
2... d5 {[%clk 0:02:58.8]} 3. e5 {[%clk 0:02:37.9]} 3... Bf5 {[%clk 0:02:57.8]}
4. h4 {[%clk 0:02:38]} 4... h5 {[%clk 0:02:57.3]} 5. Bd3 {[%clk 0:02:38.3]} 5...
Bxd3 {[%clk 0:02:56.4]} 6. Qxd3 {[%clk 0:02:39.2]} 6... Qa5+ {[%clk 0:02:56.5]}
7. Nd2 {[%clk 0:02:37.9]} 7... e6 {[%clk 0:02:54.3]} 8. c4 {[%clk 0:02:35]} 8...
Ne7 {[%clk 0:02:53.1]} 9. Nf3 {[%clk 0:02:34.8]} 9... Nf5 {[%clk 0:02:53.1]} 10.
O-O {[%clk 0:02:31.8]} 10... Be7 {[%clk 0:02:53.3]} 11. g3 {[%clk 0:02:31]}
11... Nd7 {[%clk 0:02:51.7]} 12. Rd1 {[%clk 0:02:25.7]} 12... Rd8 {[%clk
0:02:50.9]} 13. a3 {[%clk 0:02:21.9]} 13... dxc4 {[%clk 0:02:46.8]} 14. Nxc4
{[%clk 0:02:20.8]} 14... Qd5 {[%clk 0:02:46.7]} 15. Bg5 {[%clk 0:02:11.8]} 15...
f6 {[%clk 0:02:23.3]} 16. exf6 {[%clk 0:02:00.2]} 16... gxf6 {[%clk 0:02:23.4]}
17. Bf4 {[%clk 0:02:00]} 17... Nc5 {[%clk 0:02:13.7]} 18. Qe2 {[%clk 0:01:32.8]}
18... Nb3 {[%clk 0:02:11.7]} 19. Ne3 {[%clk 0:01:27.6]} 19... Nxe3 {[%clk
0:02:04.8]} 20. fxe3 {[%clk 0:01:28.5]} 20... Nxa1 {[%clk 0:02:03.6]} 21. Rxa1
{[%clk 0:01:21.7]} 21... Qe4 {[%clk 0:01:47.2]} 22. Rf1 {[%clk 0:01:09.1]} 22...
Rg8 {[%clk 0:01:22.2]} 23. Kh2 {[%clk 0:00:56.6]} 23... Bd6 {[%clk 0:01:05.4]}
24. Nd2 {[%clk 0:00:44.1]} 24... Qg6 {[%clk 0:01:04.1]} 25. Bxd6 {[%clk
0:00:31.4]} 25... Rxd6 {[%clk 0:01:03.8]} 26. Qf3 {[%clk 0:00:31.9]} 26... Rd5
{[%clk 0:00:31.1]} 27. Ne4 {[%clk 0:00:25]} 27... f5 {[%clk 0:00:20.2]} 28. Nc3
{[%clk 0:00:24.6]} 28... Rd7 {[%clk 0:00:17.7]} 29. Qf4 {[%clk 0:00:22.7]} 29...
Qg4 {[%clk 0:00:14.6]} 30. Qe5 {[%clk 0:00:22.3]} 30... Re7 {[%clk 0:00:09.9]}
31. e4 {[%clk 0:00:20.4]} 31... Qg7 {[%clk 0:00:09.3]} 32. Qb8+ {[%clk
0:00:13.7]} 32... Kf7 {[%clk 0:00:08.8]} 33. Qd6 {[%clk 0:00:13.9]} 33... Qf6
{[%clk 0:00:03.8]} 34. exf5 {[%clk 0:00:10.9]} 34... exf5 {[%clk 0:00:03.4]} 35.
Qf4 {[%clk 0:00:10]} 35... Ke8 {[%clk 0:00:02.8]} 36. d5 {[%clk 0:00:08.7]}
36... c5 {[%clk 0:00:02.1]} 37. d6 {[%clk 0:00:08.4]} 37... Re5 {[%clk
0:00:02.1]} 38. Kh3 {[%clk 0:00:06.4]} 38... Kd7 {[%clk 0:00:02.5]} 39. Rd1
{[%clk 0:00:04.3]} 39... Qe6 {[%clk 0:00:02.7]} 40. Nb5 {[%clk 0:00:02.2]} 40...
Re3 {[%clk 0:00:02.7]} 41. Nc7 {[%clk 0:00:01.9]} 41... Rexg3+ {[%clk
0:00:02.2]} 0-1

[Event "*** SCC Grand Prix: Titled Tuesday Blitz"]
[Site "Chess.com"]
[Date "2020.09.29"]
[Round "5"]
[White "Fischerev7"]
[Black "juancruzarias"]
[Result "0-1"]
[WhiteElo "2351"]
[BlackElo "2511"]
[TimeControl "180+1"]
[EndTime "10:55:40 PDT"]
[Termination "juancruzarias won by resignation"]

1. e4 {[%clk 0:03:00.9]} 1... e6 {[%clk 0:03:00.1]} 2. d4 {[%clk 0:03:00.4]}
2... d5 {[%clk 0:03:00.8]} 3. Nc3 {[%clk 0:03:00.6]} 3... Nf6 {[%clk 0:03:00.7]}
4. Bg5 {[%clk 0:03:00.7]} 4... Bb4 {[%clk 0:02:59.9]} 5. e5 {[%clk 0:03:00.8]}
5... h6 {[%clk 0:03:00.1]} 6. Bd2 {[%clk 0:03:01.3]} 6... Bxc3 {[%clk
0:02:59.8]} 7. bxc3 {[%clk 0:03:02.2]} 7... Ne4 {[%clk 0:03:00.3]} 8. Qg4 {[%clk
0:03:02.7]} 8... Kf8 {[%clk 0:03:00.2]} 9. Bd3 {[%clk 0:03:01.9]} 9... Nxd2
{[%clk 0:02:59.8]} 10. Kxd2 {[%clk 0:03:02.8]} 10... c5 {[%clk 0:03:00.2]} 11.
Qf4 {[%clk 0:03:02.1]} 11... c4 {[%clk 0:02:32.4]} 12. Be2 {[%clk 0:03:01.5]}
12... Nc6 {[%clk 0:02:31.6]} 13. Nf3 {[%clk 0:03:01.2]} 13... b5 {[%clk
0:02:30.8]} 14. a3 {[%clk 0:02:59.6]} 14... a5 {[%clk 0:02:27.8]} 15. Rhb1
{[%clk 0:02:59.5]} 15... Rb8 {[%clk 0:02:27.7]} 16. g4 {[%clk 0:02:58.9]} 16...
Qe7 {[%clk 0:02:17.9]} 17. h4 {[%clk 0:02:57.1]} 17... Ke8 {[%clk 0:02:15.6]}
18. h5 {[%clk 0:02:39.2]} 18... Kd8 {[%clk 0:02:10.2]} 19. g5 {[%clk 0:02:37.1]}
19... b4 {[%clk 0:02:02.5]} 20. axb4 {[%clk 0:02:35.7]} 20... axb4 {[%clk
0:02:03.4]} 21. cxb4 {[%clk 0:02:31.9]} 21... Rxb4 {[%clk 0:02:04.3]} 22. c3
{[%clk 0:02:21.4]} 22... Rxb1 {[%clk 0:02:01.7]} 23. Rxb1 {[%clk 0:02:21.5]}
23... Kc7 {[%clk 0:01:59.5]} 24. Ke1 {[%clk 0:02:16.6]} 24... Bd7 {[%clk
0:01:57.4]} 25. Kf1 {[%clk 0:02:12.9]} 25... Be8 {[%clk 0:01:32.7]} 26. Kg2
{[%clk 0:02:05.1]} 26... hxg5 {[%clk 0:01:31.8]} 27. Qxg5 {[%clk 0:01:58.5]}
27... Qxg5+ {[%clk 0:01:24.7]} 28. Nxg5 {[%clk 0:01:59.4]} 28... Nd8 {[%clk
0:01:24.1]} 29. Nh3 {[%clk 0:01:43.7]} 29... f6 {[%clk 0:01:23.6]} 30. exf6
{[%clk 0:01:35]} 30... gxf6 {[%clk 0:01:23.3]} 31. Nf4 {[%clk 0:01:35]} 31...
Bf7 {[%clk 0:01:23.8]} 32. Bf3 {[%clk 0:01:29.1]} 32... Nc6 {[%clk 0:01:09.1]}
33. Rh1 {[%clk 0:01:24]} 33... Kd6 {[%clk 0:01:07.1]} 34. Kg3 {[%clk 0:01:16.4]}
34... e5 {[%clk 0:01:05.2]} 35. dxe5+ {[%clk 0:01:11.1]} 35... fxe5 {[%clk
0:01:06.1]} 36. Ng6 {[%clk 0:00:42.7]} 36... Bxg6 {[%clk 0:01:04.7]} 37. hxg6
{[%clk 0:00:43.6]} 37... Rxh1 {[%clk 0:01:04.7]} 38. Bxh1 {[%clk 0:00:44.5]}
38... Ne7 {[%clk 0:01:04.9]} 39. g7 {[%clk 0:00:39.8]} 39... Nf5+ {[%clk
0:01:05.1]} 40. Kg4 {[%clk 0:00:35.2]} 40... Nxg7 {[%clk 0:01:06]} 41. f4 {[%clk
0:00:35.5]} 41... e4 {[%clk 0:00:34.8]} 42. Bg2 {[%clk 0:00:25.7]} 42... Ne6
{[%clk 0:00:29.3]} 43. Kf5 {[%clk 0:00:21.1]} 43... Nc5 {[%clk 0:00:27.5]} 44.
Kf6 {[%clk 0:00:14.3]} 44... Na4 {[%clk 0:00:26.8]} 45. f5 {[%clk 0:00:10.2]}
45... Nxc3 {[%clk 0:00:27.2]} 46. Bf1 {[%clk 0:00:08.5]} 46... e3 {[%clk
0:00:25.8]} 47. Kg7 {[%clk 0:00:08]} 47... e2 {[%clk 0:00:21.2]} 48. Bxe2 {[%clk
0:00:08.1]} 48... Nxe2 {[%clk 0:00:22.1]} 49. f6 {[%clk 0:00:08.7]} 49... Nf4
{[%clk 0:00:23]} 50. f7 {[%clk 0:00:08.6]} 50... Ne6+ {[%clk 0:00:23.9]} 51. Kf6
{[%clk 0:00:08.5]} 51... c3 {[%clk 0:00:23.5]} 0-1

[Event "*** SCC Grand Prix: Titled Tuesday Blitz"]
[Site "Chess.com"]
[Date "2020.09.29"]
[Round "5"]
[White "SRDR8290"]
[Black "Misticpikachu"]
[Result "1-0"]
[WhiteElo "2470"]
[BlackElo "2311"]
[TimeControl "180+1"]
[EndTime "10:55:41 PDT"]
[Termination "SRDR8290 won on time"]

1. d4 {[%clk 0:03:00.5]} 1... d5 {[%clk 0:02:59.3]} 2. c4 {[%clk 0:02:59.4]}
2... e6 {[%clk 0:02:54.2]} 3. Nc3 {[%clk 0:02:59.4]} 3... Nf6 {[%clk 0:02:53.7]}
4. Bg5 {[%clk 0:02:59.3]} 4... Be7 {[%clk 0:02:53]} 5. e3 {[%clk 0:02:59.6]}
5... O-O {[%clk 0:02:50.7]} 6. Nf3 {[%clk 0:02:58.8]} 6... b6 {[%clk 0:02:49.7]}
7. Bxf6 {[%clk 0:02:56.6]} 7... Bxf6 {[%clk 0:02:49.2]} 8. cxd5 {[%clk
0:02:57.5]} 8... exd5 {[%clk 0:02:48.6]} 9. Bd3 {[%clk 0:02:56.1]} 9... Be6
{[%clk 0:02:47.7]} 10. O-O {[%clk 0:02:54.3]} 10... c5 {[%clk 0:02:48]} 11. dxc5
{[%clk 0:02:52]} 11... bxc5 {[%clk 0:02:47.1]} 12. Rc1 {[%clk 0:02:51.5]} 12...
Nc6 {[%clk 0:02:43.7]} 13. b3 {[%clk 0:02:45.5]} 13... Qa5 {[%clk 0:02:33.3]}
14. Na4 {[%clk 0:02:42.1]} 14... Be7 {[%clk 0:02:11.6]} 15. Bb1 {[%clk
0:02:31.9]} 15... g6 {[%clk 0:02:03.5]} 16. Qd2 {[%clk 0:02:30.9]} 16... Qxd2
{[%clk 0:01:55.3]} 17. Nxd2 {[%clk 0:02:31.8]} 17... c4 {[%clk 0:01:33.9]} 18.
bxc4 {[%clk 0:02:29.7]} 18... Ba3 {[%clk 0:01:31.3]} 19. Rc3 {[%clk 0:02:09.5]}
19... Bb4 {[%clk 0:01:26.9]} 20. cxd5 {[%clk 0:02:07.1]} 20... Bxd5 {[%clk
0:01:11.5]} 21. Rd3 {[%clk 0:02:00]} 21... Rfd8 {[%clk 0:01:11.1]} 22. Nb3
{[%clk 0:01:53.9]} 22... a5 {[%clk 0:00:47.5]} 23. Rfd1 {[%clk 0:01:52]} 23...
Bc4 {[%clk 0:00:39.4]} 24. Rxd8+ {[%clk 0:01:50.4]} 24... Rxd8 {[%clk
0:00:40.3]} 25. Rxd8+ {[%clk 0:01:50.1]} 25... Nxd8 {[%clk 0:00:41.2]} 26. Nb6
{[%clk 0:01:37.8]} 26... Be6 {[%clk 0:00:33]} 27. Be4 {[%clk 0:01:38.2]} 27...
Kf8 {[%clk 0:00:26.8]} 28. Kf1 {[%clk 0:01:37.9]} 28... Ke7 {[%clk 0:00:26.5]}
29. Ke2 {[%clk 0:01:38]} 29... Kd6 {[%clk 0:00:25]} 30. Kd3 {[%clk 0:01:37.9]}
30... Nc6 {[%clk 0:00:21.8]} 31. Nc4+ {[%clk 0:01:36.7]} 31... Kc7 {[%clk
0:00:08.6]} 32. Bxc6 {[%clk 0:01:36.6]} 32... Kxc6 {[%clk 0:00:06.8]} 33. Ncxa5+
{[%clk 0:01:26.7]} 33... Kb5 {[%clk 0:00:06.9]} 34. Nb7 {[%clk 0:01:23.2]} 34...
Be7 {[%clk 0:00:03.6]} 35. Nd4+ {[%clk 0:01:01.5]} 35... Kb6 {[%clk 0:00:01.9]}
36. Nxe6 {[%clk 0:01:02.4]} 36... fxe6 {[%clk 0:00:02.3]} 37. Ke4 {[%clk
0:01:02.8]} 37... Kxb7 {[%clk 0:00:01.2]} 38. Ke5 {[%clk 0:01:03.7]} 38... Ba3
{[%clk 0:00:01.4]} 39. Kxe6 {[%clk 0:01:04]} 39... Kc6 {[%clk 0:00:02.3]} 40.
Kf7 {[%clk 0:01:03.7]} 40... Bb4 {[%clk 0:00:02.6]} 41. Kg7 {[%clk 0:01:03.5]}
41... Be1 {[%clk 0:00:03.5]} 42. f3 {[%clk 0:01:03.9]} 42... Bf2 {[%clk
0:00:03.9]} 43. e4 {[%clk 0:01:03.9]} 43... g5 {[%clk 0:00:04.5]} 44. Kxh7
{[%clk 0:01:03.9]} 44... Bg1 {[%clk 0:00:05.1]} 45. h3 {[%clk 0:01:03.3]} 45...
Be3 {[%clk 0:00:04.9]} 46. Kg6 {[%clk 0:01:03.3]} 46... Kd6 {[%clk 0:00:05.8]}
47. Kf5 {[%clk 0:01:02.5]} 47... Bf4 {[%clk 0:00:03.8]} 48. h4 {[%clk
0:01:01.7]} 48... Bd2 {[%clk 0:00:02.6]} 49. hxg5 {[%clk 0:01:01.6]} 49... Ke7
{[%clk 0:00:03.5]} 50. g6 {[%clk 0:01:00.2]} 50... Kf8 {[%clk 0:00:03.6]} 51. a4
{[%clk 0:00:59.6]} 51... Ba5 {[%clk 0:00:02.7]} 52. e5 {[%clk 0:00:58.2]} 52...
Kg7 {[%clk 0:00:03.6]} 53. f4 {[%clk 0:00:57.8]} 53... Bb4 {[%clk 0:00:03.4]}
54. Kg5 {[%clk 0:00:57.8]} 54... Bd2 {[%clk 0:00:02.3]} 55. g3 {[%clk
0:00:57.2]} 55... Bb4 {[%clk 0:00:02]} 56. f5 {[%clk 0:00:57.4]} 56... Bd2+
{[%clk 0:00:01.6]} 57. Kh5 {[%clk 0:00:57.5]} 57... Bc3 {[%clk 0:00:01.7]} 58.
f6+ {[%clk 0:00:58.1]} 58... Kg8 {[%clk 0:00:02.4]} 59. f7+ {[%clk 0:00:54.2]}
59... Kg7 {[%clk 0:00:02.1]} 60. e6 {[%clk 0:00:54.6]} 60... Bb4 {[%clk
0:00:02.6]} 61. a5 {[%clk 0:00:53.1]} 61... Bxa5 {[%clk 0:00:01.9]} 62. e7
{[%clk 0:00:53.1]} 1-0